[Event "ISR-chT U14 2018"]
[Site "Nir HaEmek"]
[Date "2018.08.15"]
[Round "8"]
[White "Yaniv, Yuval"]
[Black "Gorshtein, Asaf"]
[Result "1-0"]
[ECO "B13"]
[WhiteElo "2199"]
[BlackElo "2137"]
[Annotator "NA"]
[PlyCount "93"]
[EventDate "2018.08.12"]
[EventType "team-tourn"]
[EventCountry "ISR"]
[SourceTitle "playchess.com"]
[Source "ChessBase"]
[SourceQuality "1"]
[TimeControl "3060+10"]

1. e4 {[%emt 0:00:53]} c6 {[%emt 0:00:54]} 2. d4 {[%emt 0:00:05]} d5 {[%emt 0:00:03]} 3. exd5 {[%emt 0:00:10]} cxd5 {[%emt 0:00:04]} 4. Bd3 {[%emt 0:00:06]} Nc6 {[%emt 0:00:06]} 5. c3 {[%emt 0:00:05]} Nf6 {[%emt 0:00:07]} 6. Bf4 {[%emt 0:00:42]} g6 {[%emt 0:00:07]} 7. Nf3 {[%emt 0:00:54]} Bg7 {[%emt 0:00:07]} 8. O-O {[%emt 0:00:51]} O-O {[%emt 0:00:06]} 9. h3 {[%emt 0:00:12]} Bf5 {[%emt 0:01:40] LiveBook: 50 Partien} 10. Qe2 {[%emt 0:03:40] B13: Caro-Kann (Abtausch-Variante 4.c4)} Rc8 {[%emt 0:03:32]} 11. Nbd2 {[%emt 0:02:02]} a6 {[%emt 0:02:33]} (11... Bxd3 12. Qxd3 Qb6 13. a4 a6 14. Rfe1 {0-1 (43) Tari,A (2599)-Pantsulaia,L (2605) chess.com INT 2018}) 12. Rfe1 {[%emt 0:02:00]} Bxd3 {[%emt 0:02:27]} 13. Qxd3 {[%emt 0:00:02]} e6 {[%emt 0:01:16]} 14. Ne5 {[%emt 0:02:47]} Nxe5 {[%emt 0:08:26]} 15. Bxe5 {[%emt 0:05:18]} Nd7 $146 {[%emt 0:02:32]} ({Vorgänger:} 15... Bh6 16. Re2 Nd7 17. Bd6 Re8 {1-0 (60) Vojta,T (2368)-Gregor,J (2262) Ricany 2011}) 16. Bxg7 {[%emt 0:02:11]} Kxg7 {[%emt 0:00:46]} 17. Nb3 {[%emt 0:05:59]} Qc7 {[%emt 0:02:29]} 18. h4 {[%emt 0:04:22]} Qf4 {[%emt 0:01:29]} 19. g3 {[%emt 0:00:16]} Qf5 {[%emt 0:00:49]} 20. Qxf5 {[%emt 0:02:51]} gxf5 {[%emt 0:00:08]} 21. a4 {[%emt 0:00:39]} Rc7 {[%emt 0:04:26]} 22. a5 {[%emt 0:00:25]} Rb8 {[%emt 0:03:40]} 23. Ra2 {[%emt 0:03:02]} Nf6 {[%emt 0:04:37]} 24. Nc5 {[%emt 0:01:06]} Ne4 {[%emt 0:00:46]} 25. Nd3 {[%emt 0:00:26]} Nd6 {[%emt 0:00:55]} 26. f3 {[%emt 0:02:45]} b6 {[%emt 0:01:44]} 27. axb6 {[%emt 0:00:32]} Rxb6 {[%emt 0:00:04]} 28. Nc5 {[%emt 0:00:45]} Nc4 {[%emt 0:00:49]} 29. b3 {[%emt 0:00:20]} Nd6 {[%emt 0:01:53]} 30. Rxe6 {[%emt 0:00:41]} Rcc6 {[%emt 0:01:14]} 31. Re5 {[%emt 0:01:09]} Nb5 {[%emt 0:00:56]} 32. Rc2 {[%emt 0:00:43]} f4 {[%emt 0:00:41]} 33. Rg5+ {[%emt 0:00:52]} Kh8 {[%emt 0:00:30]} 34. gxf4 {[%emt 0:00:24]} Rb8 {[%emt 0:00:27]} 35. Rxd5 {[%emt 0:00:38]} Nc7 {[%emt 0:00:10]} 36. Rd7 {[%emt 0:01:13]} Ne6 {[%emt 0:00:22]} 37. Nd3 {[%emt 0:01:10]} Rcc8 {[%emt 0:00:29]} 38. f5 {[%emt 0:00:21]} Ng7 $18 {[%emt 0:00:19]} 39. Rxf7 {[%emt 0:00:17]} Rxb3 {[%emt 0:00:19]} 40. Nc5 {[%emt 0:00:18]} Rb1+ {[%emt 0:00:07]} 41. Kh2 {[%emt 0:00:06]} Nh5 {[%emt 0:00:31]} 42. Ne6 {[%emt 0:00:46]} Rcb8 {[%emt 0:01:13]} 43. Rg2 {[%emt 0:00:17]} Rc1 {[%emt 0:00:09]} 44. Nf8 {[%emt 0:00:18]} Ng3 {[%emt 0:01:05]} 45. Rxh7+ {[%emt 0:00:17]} Kg8 {[%emt 0:00:01]} 46. Rxg3+ {[%emt 0:00:01]} Kxf8 {[%emt 0:00:01]} 47. Rh8+ {[%emt 0:00:01]} 1-0

[Event "ISR-chT U14 2018"]
[Site "Nir HaEmek"]
[Date "2018.08.15"]
[Round "8"]
[White "Kochavi, Ori"]
[Black "Gov, Guy"]
[Result "1-0"]
[ECO "C10"]
[WhiteElo "2138"]
[BlackElo "1834"]
[Annotator "NA"]
[PlyCount "83"]
[EventDate "2018.08.12"]
[EventType "team-tourn"]
[EventCountry "ISR"]
[SourceTitle "playchess.com"]
[Source "ChessBase"]
[SourceQuality "1"]
[TimeControl "3060+10"]

1. e4 {[%emt 0:00:51]} e6 {[%emt 0:00:54]} 2. d4 {[%emt 0:00:04]} d5 {[%emt 0:00:02]} 3. Nd2 {[%emt 0:00:04]} dxe4 {[%emt 0:00:04]} 4. Nxe4 {[%emt 0:00:05]} Bd7 {[%emt 0:00:02]} 5. Bd3 {[%emt 0:02:34]} Bc6 {[%emt 0:00:06]} 6. c3 {[%emt 0:00:46]} Nd7 {[%emt 0:00:08]} 7. Nf3 {[%emt 0:00:27] LiveBook: 73 Partien} Ngf6 {[%emt 0:00:24]} 8. Qc2 {[%emt 0:00:47]} Nxe4 {[%emt 0:06:07]} 9. Bxe4 {[%emt 0:00:54]} Bxe4 $11 {[%emt 0:00:00]} 10. Qxe4 {[%emt 0:00:15]} c6 {[%emt 0:00:01]} 11. O-O {[%emt 0:00:20]} Bd6 {[%emt 0:01:21]} 12. a4 {[%emt 0:03:38]} Nf6 {[%emt 0:06:23]} 13. Qe2 {[%emt 0:00:06]} h6 {[%emt 0:00:41]} 14. a5 {[%emt 0:00:20]} Qc7 {[%emt 0:00:31]} 15. h3 {[%emt 0:00:50]} O-O {[%emt 0:09:59]} 16. a6 {[%emt 0:00:04]} b6 {[%emt 0:00:32]} 17. Re1 {[%emt 0:00:03]} Rad8 {[%emt 0:00:38]} 18. b3 {[%emt 0:10:54]} Nd7 {[%emt 0:03:21]} 19. Bb2 {[%emt 0:00:16]} Rfe8 {[%emt 0:01:07]} 20. c4 {[%emt 0:00:04]} Bb4 {[%emt 0:03:11]} 21. Red1 {[%emt 0:00:04]} Qf4 {[%emt 0:00:13]} 22. Rd3 {[%emt 0:05:01]} Bd6 {[%emt 0:02:50]} 23. Rad1 {[%emt 0:01:17]} Nb8 {[%emt 0:01:06]} 24. Re3 {[%emt 0:00:11]} Qf5 {[%emt 0:02:14]} 25. Re4 {[%emt 0:03:17]} Nd7 {[%emt 0:05:07]} 26. Nh4 {[%emt 0:06:01]} Qa5 {[%emt 0:00:43]} 27. d5 {[%emt 0:00:16]} cxd5 {[%emt 0:02:00]} 28. cxd5 {[%emt 0:00:06]} e5 {[%emt 0:00:14]} 29. Nf5 {[%emt 0:00:25]} Nf6 {[%emt 0:01:43]} 30. Nxd6 {[%emt 0:00:07]} Rxd6 {[%emt 0:00:01]} 31. Rxe5 {[%emt 0:00:39]} Red8 {[%emt 0:00:01]} 32. Re7 {[%emt 0:01:30]} Nxd5 {[%emt 0:00:11]} 33. Qe5 {[%emt 0:00:27]} f6 {[%emt 0:01:37]} 34. Re8+ {[%emt 0:02:50]} Kf7 {[%emt 0:00:19]} 35. Qh5+ {[%emt 0:00:13]} g6 {[%emt 0:00:33]} 36. Rxd8 {[%emt 0:00:03]} Rxd8 {[%emt 0:01:35]} 37. Qxh6 {[%emt 0:00:10]} Re8 {[%emt 0:00:23]} 38. Qh7+ {[%emt 0:00:34]} Kf8 {[%emt 0:00:00]} 39. Qxg6 {[%emt 0:04:41]} Re1+ {[%emt 0:00:16]} 40. Rxe1 {[%emt 0:06:26]} Qxe1+ {[%emt 0:00:01]} 41. Kh2 {[%emt 0:00:00]} Qxf2 {[%emt 0:00:22]} 42. Ba3+ {[%emt 0:00:20] Ne7Qe4 [%clk 0:06:33] Qf1 [%clk 0:00:21] Qxe7+ [%clk 0:06:36] Kg8 [%clk 0:00:31] Qf8+ [%clk 0:06:14] Kh7 [%clk 0:00:40] Qf7+ [%clk 0:06:11] Kh8 [%clk 0:00:41] Qh5+ [%clk 0:05:54] Kg7 [%clk 0:00:51] Qg4+ [%clk 0:05:56] Kh7 [%clk 0:00:34] Bf8 [%clk 0:00:00]} 1-0

[Event "ISR-chT U14 2018"]
[Site "Nir HaEmek"]
[Date "2018.08.15"]
[Round "8"]
[White "Levitan, Ronit"]
[Black "Milikow, Yoav"]
[Result "0-1"]
[ECO "C09"]
[WhiteElo "1933"]
[BlackElo "2186"]
[Annotator "NA"]
[PlyCount "88"]
[EventDate "2018.08.12"]
[EventType "team-tourn"]
[EventCountry "ISR"]
[SourceTitle "playchess.com"]
[Source "ChessBase"]
[SourceQuality "1"]
[TimeControl "3060+10"]

1. e4 {[%emt 0:00:53]} e6 {[%emt 0:00:56]} 2. d4 {[%emt 0:00:03]} d5 {[%emt 0:00:05]} 3. Nd2 {[%emt 0:00:02]} c5 {[%emt 0:00:04]} 4. exd5 {[%emt 0:00:04]} exd5 {[%emt 0:00:05]} 5. Ngf3 {[%emt 0:00:04]} Nc6 {[%emt 0:00:04]} 6. Bb5 {[%emt 0:00:10]} Qe7+ {[%emt 0:00:01] LiveBook: 142 Games} 7. Be2 {[%emt 0:02:22]} Qc7 {[%emt 0:00:02]} 8. O-O {[%emt 0:00:32]} Nf6 {[%emt 0:00:02]} 9. Re1 {[%emt 0:01:11]} Be6 {[%emt 0:01:40]} 10. Nb3 {[%emt 0:03:20]} cxd4 {[%emt 0:03:31]} (10... c4 $11 11. Nc5 Bxc5 12. dxc5 O-O) 11. Nbxd4 {[%emt 0:00:30]} Bc5 $16 {[%emt 0:00:26]} 12. c3 {[%emt 0:03:50]} O-O {[%emt 0:00:30]} 13. Bd3 {[%emt 0:01:31]} Rae8 {[%emt 0:04:03]} 14. h3 {[%emt 0:00:25]} Bc8 {[%emt 0:01:32]} 15. Be3 {[%emt 0:02:35]} Bb6 {[%emt 0:07:34]} 16. Bc2 {[%emt 0:03:57]} a6 {[%emt 0:00:42]} 17. Qd3 {[%emt 0:00:45]} Na5 {[%emt 0:02:18]} 18. Rad1 {[%emt 0:09:18]} Nc4 {[%emt 0:03:42]} 19. Bc1 {[%emt 0:00:10]} Ne4 {[%emt 0:02:06]} 20. Nd2 {[%emt 0:04:37]} Ne5 {[%emt 0:01:05]} 21. Qf1 {[%emt 0:01:18]} Nf6 {[%emt 0:06:07]} 22. Bb1 {[%emt 0:01:40]} Bd7 {[%emt 0:00:26]} 23. N2f3 {[%emt 0:00:45]} Nxf3+ {[%emt 0:02:04]} 24. Nxf3 {[%emt 0:00:19]} Rxe1 {[%emt 0:04:28]} 25. Qxe1 {[%emt 0:04:17]} Bxh3 {[%emt 0:01:13]} 26. Nd4 {[%emt 0:07:10]} Bd7 {[%emt 0:01:37]} 27. f3 {[%emt 0:01:36]} Ba7 {[%emt 0:00:29]} 28. Bg5 {[%emt 0:00:41]} Nh5 {[%emt 0:00:59]} 29. Qh4 {[%emt 0:00:07]} g6 {[%emt 0:00:02]} 30. Bh6 {[%emt 0:00:34]} Re8 {[%emt 0:00:20]} 31. Bd3 {[%emt 0:00:55]} Qe5 {[%emt 0:00:26]} 32. Bc2 {[%emt 0:00:19]} Bb8 {[%emt 0:00:34]} 33. f4 {[%emt 0:00:11]} Qe3+ {[%emt 0:00:08]} 34. Kh1 {[%emt 0:00:09]} Bxf4 {[%emt 0:00:27]} 35. Bxf4 {[%emt 0:00:03]} Qxf4 {[%emt 0:00:14]} 36. Qxf4 {[%emt 0:00:18]} Nxf4 {[%emt 0:00:01]} 37. Bb3 {[%emt 0:00:08]} Re3 {[%emt 0:00:16]} 38. Kg1 {[%emt 0:00:11]} Rg3 {[%emt 0:00:12]} 39. Rd2 {[%emt 0:00:07]} Bh3 {[%emt 0:00:49]} 40. Kh2 {[%emt 0:00:07]} Rxg2+ {[%emt 0:00:02]} 41. Rxg2 {[%emt 0:00:03]} Bxg2 {[%emt 0:00:09]} 42. Kg3 {[%emt 0:00:01]} g5 {[%emt 0:00:09]} 43. Nf5 {[%emt 0:00:06]} h5 {[%emt 0:00:31]} 44. Ne3 {[%emt 0:00:03]} Be4 {[%emt 0:00:12]} 0-1

[Event "ISR-chT U14 2018"]
[Site "Nir HaEmek"]
[Date "2018.08.15"]
[Round "8"]
[White "Guz, Ari"]
[Black "Qasem, Huda"]
[Result "1-0"]
[ECO "A27"]
[WhiteElo "1921"]
[BlackElo "1560"]
[Annotator "NA"]
[PlyCount "49"]
[EventDate "2018.08.12"]
[EventType "team-tourn"]
[EventCountry "ISR"]
[SourceTitle "playchess.com"]
[Source "ChessBase"]
[SourceQuality "1"]
[TimeControl "3060+10"]

1. c4 {[%emt 0:00:52]} e5 {[%emt 0:00:56]} 2. Nc3 {[%emt 0:00:25]} Nc6 {[%emt 0:00:10]} 3. Nf3 {[%emt 0:00:23]} g6 {[%emt 0:01:47]} 4. d4 {[%emt 0:00:28]} Bg7 {[%emt 0:02:12]} 5. Bg5 {[%emt 0:02:26]} Nge7 $16 {[%emt 0:01:16]} (5... f6 $11 {hält das Gleichgewicht.} 6. Be3 exd4 7. Nxd4 (7. Bxd4 Nge7 $11) 7... Nxd4 8. Bxd4 (8. Qxd4 Ne7 $14) 8... Ne7) 6. dxe5 {[%emt 0:00:39]} Nxe5 {[%emt 0:00:13]} 7. Nxe5 {[%emt 0:00:08]} Bxe5 {[%emt 0:00:05]} 8. Nd5 {[%emt 0:00:10]} Bxb2 {[%emt 0:07:17]} 9. Qb1 {[%emt 0:03:25]} Nxd5 {[%emt 0:13:53]} 10. Qxb2 {[%emt 0:04:03]} Qxg5 {[%emt 0:00:10]} 11. Qxh8+ {[%emt 0:00:08]} Ke7 {[%emt 0:00:05]} 12. cxd5 {[%emt 0:00:21]} Qxd5 {[%emt 0:00:53]} 13. Qc3 {[%emt 0:00:33]} c5 {[%emt 0:02:43]} 14. Rd1 {[%emt 0:01:25]} Qc6 {[%emt 0:01:43]} 15. Qe5+ {[%emt 0:00:22]} Kd8 {[%emt 0:00:57]} 16. e4 {[%emt 0:00:42]} b5 {[%emt 0:01:03]} 17. Be2 {[%emt 0:01:11]} Bb7 {[%emt 0:01:06]} 18. Bf3 {[%emt 0:00:50]} c4 {[%emt 0:01:18]} 19. O-O {[%emt 0:01:23]} f6 {[%emt 0:01:12]} 20. Qd4 {[%emt 0:00:30]} Qe6 {[%emt 0:02:13]} 21. Qc5 {[%emt 0:01:26]} a6 {[%emt 0:01:40]} 22. Rd6 {[%emt 0:00:17]} Qe7 {[%emt 0:00:48]} 23. Rfd1 {[%emt 0:00:25]} Ke8 {[%emt 0:01:02]} 24. Qb6 {[%emt 0:00:55]} Bc6 {[%emt 0:00:14]} 25. Rxc6 {[%emt 0:00:23]} 1-0

[Event "ISR-chT U14 2018"]
[Site "Nir HaEmek"]
[Date "2018.08.15"]
[Round "8"]
[White "Katz, Kiril"]
[Black "Sobel, Alon"]
[Result "1/2-1/2"]
[ECO "D53"]
[WhiteElo "1822"]
[BlackElo "1698"]
[Annotator "NA"]
[PlyCount "68"]
[EventDate "2018.08.12"]
[EventType "team-tourn"]
[EventCountry "ISR"]
[SourceTitle "playchess.com"]
[Source "ChessBase"]
[SourceQuality "1"]
[TimeControl "3060+10"]

1. d4 {[%emt 0:00:51]} Nf6 {[%emt 0:00:58]} 2. c4 {[%emt 0:00:08]} e6 {[%emt 0:00:06]} 3. Bg5 {[%emt 0:00:22]} Be7 {[%emt 0:00:31]} 4. Nc3 {[%emt 0:00:06]} d5 {[%emt 0:00:33]} 5. cxd5 {[%emt 0:00:06]} Nxd5 {[%emt 0:00:19]} 6. Bxe7 {[%emt 0:00:06] LiveBook: 56 Partien} Qxe7 {[%emt 0:00:11]} 7. e4 {[%emt 0:00:10]} Nf6 {[%emt 0:01:36]} 8. Nf3 {[%emt 0:00:13]} O-O {[%emt 0:00:29]} 9. Bd3 {[%emt 0:00:13]} b6 {[%emt 0:00:36]} 10. O-O {[%emt 0:00:15]} Ba6 {[%emt 0:00:01]} 11. Rc1 $16 {[%emt 0:00:50]} Bxd3 {[%emt 0:02:58]} 12. Qxd3 {[%emt 0:00:21]} Rd8 {[%emt 0:00:54]} 13. Rfd1 {[%emt 0:01:22]} c5 {[%emt 0:01:52]} 14. d5 {[%emt 0:00:12]} exd5 {[%emt 0:07:51]} 15. Nxd5 {[%emt 0:03:47]} Nxd5 {[%emt 0:01:10]} 16. exd5 {[%emt 0:02:13]} Nd7 {[%emt 0:00:58]} 17. Rd2 {[%emt 0:00:45]} Ne5 {[%emt 0:02:04]} 18. Nxe5 {[%emt 0:10:48]} Qxe5 {[%emt 0:00:05]} 19. Rcd1 {[%emt 0:00:40]} Rd6 {[%emt 0:02:45]} 20. Qe3 {[%emt 0:03:01]} Qf6 {[%emt 0:00:57]} 21. f3 {[%emt 0:01:11]} Rad8 {[%emt 0:03:14]} 22. Qe4 {[%emt 0:01:23]} g6 {[%emt 0:01:42]} 23. f4 {[%emt 0:02:00]} Kg7 {[%emt 0:03:59]} 24. Qe5 {[%emt 0:01:55]} h6 {[%emt 0:00:38]} 25. Kf2 {[%emt 0:01:09]} g5 {[%emt 0:01:09]} 26. g3 {[%emt 0:00:25]} Kg6 {[%emt 0:00:39]} 27. Qxf6+ {[%emt 0:01:37]} Kxf6 {[%emt 0:00:10]} 28. Kf3 {[%emt 0:00:04]} Kg6 {[%emt 0:01:01]} 29. g4 {[%emt 0:02:28]} f5 {[%emt 0:01:04]} 30. h3 {[%emt 0:01:43]} Kf6 {[%emt 0:00:39]} 31. Rd3 {[%emt 0:01:43]} R8d7 {[%emt 0:00:26]} 32. R1d2 {[%emt 0:00:19]} Rd8 {[%emt 0:00:30]} 33. Kg3 {[%emt 0:01:58]} R8d7 {[%emt 0:01:25]} 34. Kf3 {[%emt 0:02:17]} Rd8 {[%emt 0:00:03] Ke4 [%clk 0:00:00] Ke5+*} 1/2-1/2

[Event "ISR-chT U14 2018"]
[Site "Nir HaEmek"]
[Date "2018.08.15"]
[Round "8"]
[White "Tsirilman, Guy"]
[Black "Milikow, Elie"]
[Result "0-1"]
[ECO "A48"]
[WhiteElo "1753"]
[BlackElo "2173"]
[Annotator "NA"]
[PlyCount "134"]
[EventDate "2018.08.12"]
[EventType "team-tourn"]
[EventCountry "ISR"]
[SourceTitle "playchess.com"]
[Source "ChessBase"]
[SourceQuality "1"]
[TimeControl "3060+10"]

1. d4 {[%emt 0:00:58]} Nf6 {[%emt 0:00:55]} 2. Bf4 {[%emt 0:00:13]} g6 {[%emt 0:00:37]} 3. e3 {[%emt 0:00:26]} Bg7 {[%emt 0:00:25]} 4. Nf3 {[%emt 0:00:16]} O-O {[%emt 0:00:21]} 5. h3 {[%emt 0:00:10]} d6 {[%emt 0:01:01]} 6. Be2 {[%emt 0:01:07]} b6 {[%emt 0:00:48]} 7. O-O {[%emt 0:00:28]} Bb7 {[%emt 0:00:10]} 8. c4 {[%emt 0:00:29] LiveBook: 70 Games} Nfd7 {[%emt 0:04:06]} 9. Nc3 $14 {[%emt 0:00:39]} Nc6 {[%emt 0:04:36]} 10. Rb1 {[%emt 0:02:49]} e5 {[%emt 0:04:48]} 11. Bh2 {[%emt 0:00:19]} exd4 {[%emt 0:16:18]} 12. exd4 {[%emt 0:00:38]} Ne7 {[%emt 0:01:21]} 13. d5 {[%emt 0:06:01]} Ne5 {[%emt 0:03:35]} 14. Nxe5 {[%emt 0:01:57]} dxe5 {[%emt 0:00:16]} 15. Ne4 {[%emt 0:01:27]} Nf5 {[%emt 0:00:26]} 16. Bd3 {[%emt 0:02:09]} Nd4 {[%emt 0:01:30]} 17. f4 {[%emt 0:02:44]} f5 {[%emt 0:01:59]} 18. Nc3 {[%emt 0:02:29]} e4 {[%emt 0:00:15]} 19. Bc2 {[%emt 0:00:47]} c6 {[%emt 0:04:31]} 20. dxc6 {[%emt 0:07:29]} Bxc6 {[%emt 0:01:17]} 21. Ba4 {[%emt 0:01:26]} Bxa4 {[%emt 0:00:50]} 22. Qxa4 {[%emt 0:02:32]} Qe8 {[%emt 0:00:10]} 23. Qxe8 {[%emt 0:00:27]} Rfxe8 {[%emt 0:00:03]} 24. Rbd1 {[%emt 0:01:09]} e3 {[%emt 0:00:43]} 25. Rfe1 {[%emt 0:00:33]} Rac8 {[%emt 0:00:36]} 26. Rd3 {[%emt 0:02:26]} e2 {[%emt 0:00:53]} 27. b3 {[%emt 0:01:12]} b5 {[%emt 0:01:03]} 28. Kf2 {[%emt 0:04:58]} bxc4 {[%emt 0:00:16]} 29. bxc4 {[%emt 0:00:05]} Rxc4 {[%emt 0:00:18]} 30. Nxe2 {[%emt 0:00:58]} Rc2 {[%emt 0:00:27]} 31. Re3 {[%emt 0:00:18]} Rxe3 {[%emt 0:00:33]} 32. Kxe3 {[%emt 0:00:11]} Rxa2 {[%emt 0:00:20]} 33. Nxd4 {[%emt 0:02:10]} Ra3+ {[%emt 0:00:02]} 34. Ke2 {[%emt 0:00:20]} Bxd4 {[%emt 0:00:04]} 35. Bg1 {[%emt 0:00:46]} Bxg1 {[%emt 0:00:11]} 36. Rxg1 {[%emt 0:00:01]} Kf7 {[%emt 0:00:01]} 37. Rb1 {[%emt 0:00:03]} h6 {[%emt 0:00:46]} 38. Rb7+ {[%emt 0:01:07]} Kf6 {[%emt 0:00:04]} 39. Rc7 {[%emt 0:00:10]} Ra6 {[%emt 0:00:23]} 40. Rh7 {[%emt 0:00:27]} h5 {[%emt 0:00:04]} 41. h4 {[%emt 0:00:22]} Ke6 {[%emt 0:00:11]} 42. Kd3 {[%emt 0:01:12]} Ra2 {[%emt 0:00:08]} 43. Rg7 {[%emt 0:00:26]} Kf6 {[%emt 0:00:12]} 44. Rc7 {[%emt 0:00:19]} Rxg2 {[%emt 0:00:25]} 45. Rxa7 {[%emt 0:00:01]} Rg4 {[%emt 0:00:07]} 46. Ra6+ {[%emt 0:00:02]} Kg7 {[%emt 0:00:03]} 47. Ke3 {[%emt 0:00:17]} Rxh4 {[%emt 0:00:02]} 48. Kf3 {[%emt 0:00:06]} Rh3+ {[%emt 0:00:01]} 49. Kg2 {[%emt 0:00:01]} Rb3 {[%emt 0:00:01]} 50. Ra7+ {[%emt 0:00:07]} Kh6 {[%emt 0:00:17]} 51. Ra4 {[%emt 0:00:28]} h4 {[%emt 0:00:10]} 52. Rd4 {[%emt 0:00:13]} Kh5 {[%emt 0:00:29]} 53. Rd6 {[%emt 0:00:15]} Rb2+ {[%emt 0:00:10]} 54. Kf3 {[%emt 0:00:08]} h3 {[%emt 0:00:22]} 55. Kg3 {[%emt 0:00:23]} Rb3+ {[%emt 0:00:08]} 56. Kf2 {[%emt 0:00:08]} Kg4 {[%emt 0:00:18]} 57. Rxg6+ {[%emt 0:00:02]} Kxf4 {[%emt 0:00:01]} 58. Rh6 {[%emt 0:00:18]} Rb2+ {[%emt 0:00:15]} 59. Kg1 {[%emt 0:00:08]} Kg4 {[%emt 0:00:10]} 60. Rg6+ {[%emt 0:00:07]} Kh5 {[%emt 0:00:07]} 61. Rg8 {[%emt 0:00:05]} Rg2+ {[%emt 0:00:08]} 62. Rxg2 {[%emt 0:00:10]} hxg2 {[%emt 0:00:01]} 63. Kf2 {[%emt 0:00:48]} Kh4 {[%emt 0:00:11]} 64. Kxg2 {[%emt 0:00:02]} Kg4 {[%emt 0:00:02]} 65. Kf2 {[%emt 0:00:02]} Kf4 {[%emt 0:00:01]} 66. Ke2 {[%emt 0:00:03]} Kg3 {[%emt 0:00:01]} 67. Kf1 {[%emt 0:00:01]} Kf3 {[%emt 0:00:01]} 0-1

[Event "ISR-chT U14 2018"]
[Site "Nir HaEmek"]
[Date "2018.08.15"]
[Round "8"]
[White "Glatt, Oded"]
[Black "Neeman, Gal"]
[Result "1-0"]
[ECO "B05"]
[WhiteElo "1645"]
[BlackElo "1767"]
[Annotator "NA"]
[PlyCount "83"]
[EventDate "2018.08.12"]
[EventType "team-tourn"]
[EventCountry "ISR"]
[SourceTitle "playchess.com"]
[Source "ChessBase"]
[SourceQuality "1"]
[TimeControl "3060+10"]

1. e4 {[%emt 0:00:51]} Nf6 {[%emt 0:00:56]} 2. e5 {[%emt 0:00:06]} Nd5 {[%emt 0:00:04]} 3. c4 {[%emt 0:00:10]} Nb6 {[%emt 0:00:05]} 4. d4 {[%emt 0:00:08]} d6 {[%emt 0:00:03]} 5. exd6 {[%emt 0:00:32]} exd6 {[%emt 0:01:50]} 6. Nf3 {[%emt 0:01:31]} Nc6 {[%emt 0:00:11]} 7. Be2 {[%emt 0:03:43]} Bg4 {[%emt 0:00:40]} 8. b3 {[%emt 0:01:07]} Be7 {[%emt 0:00:43]} 9. Bb2 {[%emt 0:00:34]} d5 {[%emt 0:01:39]} 10. c5 {[%emt 0:04:04]} Nc8 {[%emt 0:00:44]} 11. Bb5 {[%emt 0:02:34]} Bd7 {[%emt 0:06:01]} 12. Nc3 {[%emt 0:03:12]} a6 {[%emt 0:00:22]} 13. Bxc6 {[%emt 0:00:42]} Bxc6 {[%emt 0:00:17]} 14. Ne5 {[%emt 0:00:23]} Na7 {[%emt 0:01:20]} 15. Qf3 {[%emt 0:00:56]} Bf6 {[%emt 0:03:17]} 16. Nxc6 {[%emt 0:01:21]} bxc6 {[%emt 0:02:38]} 17. Ne2 {[%emt 0:01:42]} O-O {[%emt 0:00:53]} 18. O-O {[%emt 0:00:14]} Re8 {[%emt 0:00:43]} 19. Rfe1 {[%emt 0:02:19]} Nb5 {[%emt 0:00:51]} 20. a4 {[%emt 0:02:04]} Na7 {[%emt 0:00:45]} 21. Nf4 {[%emt 0:01:15]} Qd7 {[%emt 0:04:19]} 22. Nh5 {[%emt 0:01:23]} Bg5 {[%emt 0:05:17]} 23. Qg3 {[%emt 0:03:12]} Qf5 {[%emt 0:04:37]} 24. Nxg7 {[%emt 0:02:02]} Rxe1+ {[%emt 0:04:42]} 25. Rxe1 {[%emt 0:00:15]} Kxg7 {[%emt 0:03:22]} 26. h4 {[%emt 0:01:10]} h6 {[%emt 0:00:59]} 27. Bc1 {[%emt 0:00:40]} Kg6 {[%emt 0:01:04]} 28. hxg5 {[%emt 0:00:46]} h5 {[%emt 0:01:29]} 29. Qe5 {[%emt 0:01:17]} Qxe5 {[%emt 0:01:33]} 30. dxe5 {[%emt 0:01:34]} Kf5 {[%emt 0:00:26]} 31. g3 {[%emt 0:00:56]} Rb8 {[%emt 0:00:20]} 32. Re3 {[%emt 0:00:28]} Re8 {[%emt 0:00:10]} 33. f4 {[%emt 0:00:10]} Nc8 {[%emt 0:00:12]} 34. Bd2 {[%emt 0:00:48]} Re6 {[%emt 0:00:39]} 35. Ba5 {[%emt 0:00:40]} Re7 {[%emt 0:00:01]} 36. Kg2 {[%emt 0:00:50]} Kg4 {[%emt 0:00:23]} 37. Re1 {[%emt 0:00:26]} Na7 {[%emt 0:00:46]} 38. Rh1 {[%emt 0:00:34]} Rd7 {[%emt 0:00:41]} 39. Rh4+ {[%emt 0:00:42]} Kf5 {[%emt 0:00:00]} 40. Rxh5 {[%emt 0:00:36]} d4 {[%emt 0:00:38]} 41. Kf3 {[%emt 0:01:41]} d3 {[%emt 0:00:15]} 42. Rh6 {[%emt 0:00:20]} 1-0

[Event "ISR-chT U14 2018"]
[Site "Nir HaEmek"]
[Date "2018.08.15"]
[Round "8"]
[White "Yusupoff, Yoav"]
[Black "Zemach, Nadav"]
[Result "1-0"]
[ECO "E07"]
[WhiteElo "1634"]
[BlackElo "1901"]
[Annotator "NA"]
[PlyCount "92"]
[EventDate "2018.08.12"]
[EventType "team-tourn"]
[EventCountry "ISR"]
[SourceTitle "playchess.com"]
[Source "ChessBase"]
[SourceQuality "1"]
[TimeControl "3060+10"]

1. c4 {[%emt 0:01:07]} e6 {[%emt 0:00:53]} 2. g3 {[%emt 0:00:07]} d5 {[%emt 0:00:03]} 3. cxd5 {[%emt 0:00:14]} exd5 {[%emt 0:00:04]} 4. Bg2 {[%emt 0:00:07]} Nf6 {[%emt 0:00:04]} 5. Nf3 {[%emt 0:00:38]} Be7 $11 {[%emt 0:00:14] LiveBook: 41 Partien} 6. Nc3 {[%emt 0:01:36]} O-O {[%emt 0:00:13]} 7. d4 {[%emt 0:00:08]} c6 {[%emt 0:00:53]} 8. O-O {[%emt 0:01:12]} Nbd7 {[%emt 0:00:43]} 9. Qc2 {[%emt 0:05:37]} Bd6 {[%emt 0:01:23]} 10. Bf4 {[%emt 0:00:59]} Bxf4 {[%emt 0:02:13]} 11. gxf4 {[%emt 0:00:01]} Nb6 {[%emt 0:01:26]} 12. b3 {[%emt 0:01:04]} h6 {[%emt 0:01:47]} 13. e3 {[%emt 0:02:15]} Bg4 {[%emt 0:02:37]} 14. Kh1 {[%emt 0:03:39]} Qc8 {[%emt 0:00:25]} 15. Ne5 {[%emt 0:02:24]} Qf5 {[%emt 0:02:48]} 16. Qxf5 {[%emt 0:03:12]} Bxf5 {[%emt 0:00:05]} 17. Ne2 {[%emt 0:02:12]} Be4 {[%emt 0:01:32]} 18. Ng3 {[%emt 0:00:44]} Bxg2+ {[%emt 0:00:25]} 19. Kxg2 {[%emt 0:00:01]} g6 {[%emt 0:02:49]} 20. f5 {[%emt 0:08:14]} Kh7 {[%emt 0:00:50]} 21. Rg1 {[%emt 0:00:18]} Ne8 {[%emt 0:03:45]} 22. h4 {[%emt 0:02:58]} Nd6 {[%emt 0:00:23]} 23. fxg6+ {[%emt 0:06:37]} fxg6 {[%emt 0:00:10]} 24. Kf1 {[%emt 0:00:22]} Rf6 {[%emt 0:00:51]} 25. Ke2 {[%emt 0:02:15]} Raf8 {[%emt 0:00:20]} 26. Rg2 {[%emt 0:00:01]} Nf7 {[%emt 0:01:33]} 27. Nd3 {[%emt 0:01:01]} Nh8 {[%emt 0:01:54]} 28. Ne5 {[%emt 0:00:22]} Nf7 {[%emt 0:00:06]} 29. Nd3 {[%emt 0:00:02]} Nh8 {[%emt 0:00:06]} 30. Rag1 {[%emt 0:00:03]} Nd7 {[%emt 0:00:40]} 31. Nh5 {[%emt 0:00:39]} R6f7 {[%emt 0:01:44]} 32. Nhf4 {[%emt 0:00:16]} Rg8 {[%emt 0:01:08]} 33. Ne5 {[%emt 0:03:23]} Nxe5 {[%emt 0:00:12]} 34. dxe5 {[%emt 0:00:01]} Rfg7 {[%emt 0:02:37]} 35. e6 {[%emt 0:00:26]} Re7 {[%emt 0:00:18]} 36. Kd3 {[%emt 0:00:02]} c5 {[%emt 0:01:48]} 37. e4 {[%emt 0:00:31]} dxe4+ 38. Kxe4 {[%emt 0:00:01]} Rge8 {[%emt 0:07:34]} 39. Kd5 {[%emt 0:00:31]} b6 {[%emt 0:00:16]} 40. Nxg6 {[%emt 0:00:08]} Rd8+ {[%emt 0:01:45]} 41. Ke5 {[%emt 0:00:00]} Nxg6+ {[%emt 0:00:31]} 42. Rxg6 {[%emt 0:00:02]} Rd2 {[%emt 0:00:31]} 43. Kf6 {[%emt 0:00:37]} Re8 {[%emt 0:00:12]} 44. Kf7 {[%emt 0:00:01]} Rdd8 {[%emt 0:00:29]} 45. e7 {[%emt 0:00:23]} Rb8 {[%emt 0:00:15]} 46. Rf6 {[%emt 0:00:21]} Kh8 {[%emt 0:08:05]} 1-0